[Event "Swedish Chess Championship 2019: Mastarklassen-Elit"]
[Site "Stiga Sports Arena, Arenatorget 1, Eskilstuna, Sweden"]
[Date "2019.07.07"]
[Round "2.2"]
[White "Logdahl, Harald"]
[Black "Lindberg, Bengt"]
[Result "1/2-1/2"]
[TimeControl "90 minutes for 40 moves + 30 minutes for the rest of the game + 30 seconds per move from move one"]
[WhiteTitle "FM"]
[BlackTitle "IM"]
[WhiteFideId "1702734"]
[BlackFideId "1700359"]
[WhiteElo "2269"]
[BlackElo "2384"]

1. e4 {[%clk 01:30:08]} {[%emt 00:00:51]} c5 {[%clk 01:27:29]} {[%emt
00:03:30]} 2. Nc3 {[%clk 01:30:20]} {[%emt 00:00:19]} Nc6 {[%clk 01:27:43]}
{[%emt 00:00:16]} 3. Bb5 {[%clk 01:30:06]} {[%emt 00:00:44]} Nd4 {[%clk
01:26:47]} {[%emt 00:01:25]} 4. Nf3 {[%clk 01:30:16]} {[%emt 00:00:20]} e6
{[%clk 01:25:18]} {[%emt 00:01:59]} 5. O-O {[%clk 01:17:43]} {[%emt 00:13:04]}
a6 {[%clk 01:25:29]} {[%emt 00:00:19]} 6. Be2 {[%clk 01:16:58]} {[%emt
00:01:15]} g6 {[%clk 01:19:11]} {[%emt 00:06:47]} 7. Re1 {[%clk 01:01:58]}
{[%emt 00:15:31]} Bg7 {[%clk 01:18:25]} {[%emt 00:01:15]} 8. Bf1 {[%clk
00:59:56]} {[%emt 00:02:33]} Ne7 {[%clk 01:14:48]} {[%emt 00:04:07]} 9. Nxd4
{[%clk 00:51:19]} {[%emt 00:09:07]} cxd4 {[%clk 01:12:57]} {[%emt 00:02:22]} 10.
Ne2 {[%clk 00:51:16]} {[%emt 00:00:32]} d5 {[%clk 01:07:42]} {[%emt 00:05:45]}
11. exd5 {[%clk 00:46:10]} {[%emt 00:05:36]} Nxd5 {[%clk 01:07:40]} {[%emt
00:00:31]} 12. c4 {[%clk 00:45:00]} {[%emt 00:01:42]} dxc3 {[%clk 01:06:56]}
{[%emt 00:01:13]} 13. dxc3 {[%clk 00:45:08]} {[%emt 00:00:23]} O-O {[%clk
01:02:44]} {[%emt 00:04:41]} 14. Nf4 {[%clk 00:40:41]} {[%emt 00:04:57]} Nxf4
{[%clk 00:59:15]} {[%emt 00:03:59]} 15. Bxf4 {[%clk 00:40:53]} {[%emt
00:00:18]} Bd7 {[%clk 00:59:26]} {[%emt 00:00:18]} 16. Be3 {[%clk 00:24:13]}
{[%emt 00:17:11]} Qc7 {[%clk 00:56:56]} {[%emt 00:02:59]} 17. a4 {[%clk
00:17:50]} {[%emt 00:06:54]} Bc6 {[%clk 00:53:21]} {[%emt 00:04:04]} 18. a5
{[%clk 00:15:47]} {[%emt 00:02:34]} Rac8 {[%clk 00:47:09]} {[%emt 00:06:41]} 19.
Bb6 {[%clk 00:15:39]} {[%emt 00:00:39]} Qe7 {[%clk 00:47:12]} {[%emt 00:00:27]}
20. Qg4 {[%clk 00:13:59]} {[%emt 00:02:10]} Kh8 {[%clk 00:36:01]} {[%emt
00:11:40]} 21. Rad1 {[%clk 00:08:27]} {[%emt 00:06:03]} f5 {[%clk 00:33:53]}
{[%emt 00:02:37]} 22. Qf4 {[%clk 00:08:26]} {[%emt 00:00:31]} e5 {[%clk
00:30:46]} {[%emt 00:03:37]} 23. Qd2 {[%clk 00:06:46]} {[%emt 00:02:12]} Qh4
{[%clk 00:24:30]} {[%emt 00:06:45]} 24. b4 {[%clk 00:04:25]} {[%emt 00:02:52]}
e4 {[%clk 00:18:29]} {[%emt 00:06:30]} 25. g3 {[%clk 00:03:08]} {[%emt
00:01:47]} Qf6 {[%clk 00:17:25]} {[%emt 00:01:33]} 26. Bd4 {[%clk 00:03:16]}
{[%emt 00:00:23]} Qf7 {[%clk 00:17:49]} {[%emt 00:00:06]} 27. c4 {[%clk
00:03:22]} {[%emt 00:00:24]} Ba4 {[%clk 00:15:13]} {[%emt 00:03:05]} 28. Ra1
{[%clk 00:02:51]} {[%emt 00:01:02]} Rcd8 {[%clk 00:12:19]} {[%emt 00:03:26]} 29.
Bxg7+ {[%clk 00:03:16]} {[%emt 00:00:04]} Qxg7 {[%clk 00:12:43]} {[%emt
00:00:05]} 30. Qe3 {[%clk 00:03:15]} {[%emt 00:00:31]} Bc2 {[%clk 00:11:48]}
{[%emt 00:01:24]} 31. Ra3 {[%clk 00:03:16]} {[%emt 00:00:30]} g5 {[%clk
00:09:41]} {[%emt 00:02:36]} 32. Qc3 {[%clk 00:03:39]} {[%emt 00:00:13]} Bd1
{[%clk 00:09:09]} {[%emt 00:00:56]} 33. Qxg7+ Kxg7 {[%clk 00:09:37]} 34. b5
{[%clk 00:03:26]} {[%emt 00:00:58]} Rf6 {[%clk 00:08:29]} {[%emt 00:01:37]} 35.
Ra1 {[%clk 00:02:34]} {[%emt 00:01:22]} Bf3 {[%clk 00:08:12]} {[%emt 00:00:46]}
36. Rab1 {[%clk 00:02:49]} {[%emt 00:00:16]} Rc8 {[%clk 00:04:52]} {[%emt
00:03:49]} 37. bxa6 {[%clk 00:02:49]} {[%emt 00:00:32]} bxa6 {[%clk 00:05:20]}
{[%emt 00:00:01]} 38. Rb7+ {[%clk 00:02:43]} {[%emt 00:00:36]} Kg6 {[%clk
00:04:41]} {[%emt 00:01:08]} 39. Rb6 {[%clk 00:02:56]} {[%emt 00:00:18]} Rc5
{[%clk 00:04:55]} {[%emt 00:00:14]} 40. Ra1 {[%clk 00:01:13]} {[%emt 00:02:14]}
f4 {[%clk 00:02:59]} {[%emt 00:02:31]} 41. Ra3 {[%clk 00:27:53]} {[%emt
00:05:24]} Kf5 {[%clk 00:19:53]} {[%emt 00:11:57]} 42. Ra4 {[%clk 00:19:02]}
{[%emt 00:09:22]} h5 {[%clk 00:19:10]} {[%emt 00:01:12]} 43. h4 {[%clk
00:12:18]} {[%emt 00:07:15]} fxg3 {[%clk 00:11:51]} {[%emt 00:07:49]} 44. fxg3
{[%clk 00:11:52]} {[%emt 00:00:56]} gxh4 {[%clk 00:09:24]} {[%emt 00:02:56]} 45.
gxh4 {[%clk 00:12:13]} {[%emt 00:00:09]} Rcc6 {[%clk 00:05:20]} {[%emt
00:04:32]} 46. Rab4 {[%clk 00:08:46]} {[%emt 00:04:00]} e3 {[%clk 00:05:34]}
{[%emt 00:00:16]} 47. Rxc6 {[%clk 00:07:02]} {[%emt 00:02:14]} Rxc6 {[%clk
00:05:43]} {[%emt 00:00:19]} 48. Rb6 {[%clk 00:04:50]} {[%emt 00:02:44]} Rc5
{[%clk 00:05:35]} {[%emt 00:00:36]} 49. Bd3+ {[%clk 00:04:24]} {[%emt
00:00:58]} Kf4 {[%clk 00:01:31]} {[%emt 00:04:33]} 50. Rxa6 {[%clk 00:04:04]}
{[%emt 00:00:51]} Kg3 {[%clk 00:01:59]} 51. Re6 {[%clk 00:02:49]} {[%emt
00:01:46]} Rxa5 {[%clk 00:02:13]} {[%emt 00:00:16]} 52. Rxe3 {[%clk 00:03:05]}
{[%emt 00:00:15]} Ra3 {[%clk 00:02:18]} {[%emt 00:00:23]} 53. Kf1 {[%clk
00:01:11]} {[%emt 00:02:25]} Rb3 {[%clk 00:00:47]} {[%emt 00:02:00]} 54. Ke1
{[%clk 00:01:23]} {[%emt 00:00:18]} Kf4 {[%clk 00:00:50]} {[%emt 00:00:26]} 55.
Kf2 {[%clk 00:00:59]} {[%emt 00:00:56]} Rb2+ {[%clk 00:01:14]} {[%emt
00:00:05]} 56. Be2 {[%clk 00:01:18]} {[%emt 00:00:11]} Bg4 {[%clk 00:01:36]}
{[%emt 00:00:08]} 57. Re7 {[%clk 00:01:26]} {[%emt 00:00:22]} Rc2 {[%clk
00:01:48]} {[%emt 00:00:18]} 58. Ke1 {[%clk 00:01:06]} {[%emt 00:00:50]} Bxe2
{[%clk 00:02:02]} {[%emt 00:00:16]} 59. Rxe2 {[%clk 00:01:33]} {[%emt
00:00:03]} Rxc4 {[%clk 00:02:27]} {[%emt 00:00:06]} 60. Kf2 {[%clk 00:01:48]}
{[%emt 00:00:14]} Kg4 {[%clk 00:02:48]} {[%emt 00:00:08]} 61. Kg2 {[%clk
00:02:12]} {[%emt 00:00:07]} Kxh4 {[%clk 00:03:05]} {[%emt 00:00:13]} 62. Ra2
{[%clk 00:02:21]} {[%emt 00:00:21]} Kg4 {[%clk 00:03:29]} {[%emt 00:00:06]} 63.
Ra1 {[%clk 00:02:35]} {[%emt 00:00:16]} h4 {[%clk 00:03:52]} {[%emt 00:00:07]}
64. Kh1 {[%clk 00:02:56]} {[%emt 00:00:07]} Rc3 {[%clk 00:04:04]} {[%emt
00:00:19]} 65. Rb1 {[%clk 00:03:10]} {[%emt 00:00:17]} h3 {[%clk 00:04:21]}
{[%emt 00:00:13]} 66. Ra1 {[%clk 00:03:24]} {[%emt 00:00:16]} Kg3 {[%clk
00:04:36]} {[%emt 00:00:14]} 67. Rb1 {[%clk 00:03:43]} {[%emt 00:00:12]} h2
{[%clk 00:04:49]} {[%emt 00:00:17]} 68. Rb3 {[%clk 00:03:24]} {[%emt 00:00:49]}
Rxb3 {[%emt 00:00:05]} 1/2-1/2

[Event "Swedish Chess Championship 2019: Mastarklassen-Elit"]
[Site "Stiga Sports Arena, Arenatorget 1, Eskilstuna, Sweden"]
[Date "2019.07.11"]
[Round "6.5"]
[White "Logdahl, Harald"]
[Black "Andersson, Tommy"]
[Result "0-1"]
[TimeControl "90 minutes for 40 moves + 30 minutes for the rest of the game + 30 seconds per move from move one"]
[WhiteTitle "FM"]
[BlackTitle "IM"]
[WhiteFideId "1702734"]
[BlackFideId "1703803"]
[WhiteElo "2269"]
[BlackElo "2390"]

1. e4 {[%clk 01:30:57]} {[%emt 00:00:02]} c5 {[%clk 01:30:57]} {[%emt
00:00:09]} 2. Nc3 {[%clk 01:31:19]} {[%emt 00:00:26]} d6 {[%clk 01:30:58]}
{[%emt 00:01:32]} 3. g3 {[%clk 01:31:38]} {[%emt 00:00:35]} Nc6 {[%clk
01:30:35]} {[%emt 00:03:05]} 4. Bg2 {[%clk 01:32:01]} {[%emt 00:00:23]} g6
{[%clk 01:30:59]} {[%emt 00:00:24]} 5. d3 {[%clk 01:32:25]} {[%emt 00:00:24]}
Bg7 {[%clk 01:31:25]} {[%emt 00:00:22]} 6. f4 {[%clk 01:32:00]} {[%emt
00:02:23]} e6 {[%clk 01:31:19]} 7. Nf3 {[%clk 01:32:20]} Nge7 {[%clk 01:31:41]}
8. O-O {[%clk 01:32:41]} O-O {[%clk 01:32:01]} 9. Be3 {[%clk 01:33:04]} b6
{[%clk 01:31:43]} 10. d4 {[%clk 01:33:06]} Ba6 {[%clk 01:31:56]} 11. Re1 {[%clk
01:33:24]} Rc8 {[%clk 01:32:09]} 12. a4 {[%clk 01:32:45]} d5 {[%clk 01:30:29]}
{[%emt 00:00:05]} 13. exd5 {[%clk 01:22:25]} {[%emt 00:10:44]} exd5 {[%clk
01:30:06]} {[%emt 00:00:53]} 14. Bf2 {[%clk 01:04:14]} {[%emt 00:18:41]} Nf5
{[%clk 01:28:37]} {[%emt 00:01:59]} 15. dxc5 {[%clk 00:52:55]} {[%emt
00:11:49]} d4 {[%clk 01:28:07]} {[%emt 00:01:00]} 16. Ne4 {[%clk 00:52:58]}
{[%emt 00:00:27]} Nb4 {[%clk 01:25:50]} {[%emt 00:02:47]} 17. Ne5 {[%clk
00:48:14]} {[%emt 00:05:14]} bxc5 {[%clk 01:23:30]} {[%emt 00:02:51]} 18. c3
{[%clk 00:38:15]} {[%emt 00:10:29]} Nd5 {[%clk 01:06:46]} {[%emt 00:17:13]} 19.
b4 {[%clk 00:28:29]} {[%emt 00:10:15]} Nfe3 {[%clk 00:29:43]} {[%emt 00:37:34]}
20. Bxe3 {[%clk 00:28:44]} {[%emt 00:00:16]} Nxe3 {[%clk 00:30:06]} {[%emt
00:00:07]} 21. Rxe3 {[%clk 00:28:44]} {[%emt 00:00:29]} dxe3 {[%clk 00:27:48]}
{[%emt 00:02:48]} 22. Nxc5 {[%clk 00:26:04]} {[%emt 00:03:10]} Qxd1+ {[%clk
00:15:59]} {[%emt 00:12:19]} 23. Rxd1 {[%clk 00:26:29]} {[%emt 00:00:05]} e2
{[%clk 00:14:15]} {[%emt 00:02:14]} 24. Re1 {[%clk 00:26:44]} {[%emt 00:00:15]}
Bxe5 {[%clk 00:12:51]} {[%emt 00:01:54]} 25. fxe5 {[%clk 00:27:03]} {[%emt
00:00:11]} Bc4 {[%clk 00:12:27]} {[%emt 00:00:54]} 26. Bf3 {[%clk 00:20:35]}
{[%emt 00:06:58]} Rfe8 {[%clk 00:12:10]} {[%emt 00:00:47]} 27. Bg4 {[%clk
00:10:44]} {[%emt 00:10:21]} Rcd8 {[%clk 00:08:33]} {[%emt 00:04:08]} 28. e6
{[%clk 00:11:05]} {[%emt 00:00:09]} Rd1 {[%clk 00:07:04]} {[%emt 00:01:59]} 29.
Rxd1 {[%clk 00:10:56]} {[%emt 00:00:41]} exd1=Q+ {[%clk 00:07:06]} {[%emt
00:00:27]} 30. Bxd1 {[%clk 00:11:22]} {[%emt 00:00:04]} Bxe6 {[%clk 00:06:17]}
{[%emt 00:01:18]} 31. Kf2 {[%clk 00:10:29]} {[%emt 00:01:22]} Bc4 {[%clk
00:06:30]} {[%emt 00:00:18]} 32. Bf3 {[%clk 00:09:23]} {[%emt 00:01:36]} f5
{[%clk 00:06:41]} {[%emt 00:00:19]} 33. Nb7 {[%clk 00:09:12]} {[%emt 00:00:41]}
Bd3 {[%clk 00:04:42]} {[%emt 00:02:30]} 34. Nc5 {[%clk 00:08:20]} {[%emt
00:01:21]} Bc4 {[%clk 00:05:04]} {[%emt 00:00:08]} 35. Nb7 {[%clk 00:08:10]}
{[%emt 00:00:40]} Bd3 {[%clk 00:05:21]} {[%emt 00:00:14]} 36. Nc5 {[%clk
00:08:00]} {[%emt 00:00:40]} Rd8 {[%clk 00:03:32]} {[%emt 00:02:19]} 37. Ke3
{[%clk 00:06:38]} {[%emt 00:01:51]} Bc4 {[%clk 00:03:52]} {[%emt 00:00:11]} 38.
Bc6 {[%clk 00:03:56]} {[%emt 00:03:12]} Rd6 {[%clk 00:01:32]} {[%emt 00:02:49]}
39. b5 {[%clk 00:03:17]} {[%emt 00:01:09]} Kf7 {[%clk 00:01:44]} {[%emt
00:00:18]} 40. h4 {[%clk 00:02:12]} {[%emt 00:01:35]} Rd1 {[%clk 00:00:53]}
{[%emt 00:01:21]} 41. Bf3 {[%clk 00:24:48]} {[%emt 00:07:54]} Rd6 {[%clk
00:24:47]} {[%emt 00:06:36]} 42. Bc6 {[%clk 00:22:07]} {[%emt 00:03:11]} Ke7
{[%clk 00:22:43]} {[%emt 00:02:34]} 43. Bf3 {[%clk 00:19:19]} {[%emt 00:03:19]}
h6 {[%clk 00:20:36]} {[%emt 00:02:37]} 44. Bc6 {[%clk 00:18:14]} {[%emt
00:01:33]} g5 {[%clk 00:19:47]} {[%emt 00:01:20]} 45. hxg5 {[%clk 00:18:40]}
{[%emt 00:00:05]} hxg5 {[%clk 00:20:11]} {[%emt 00:00:06]} 46. Bf3 {[%clk
00:16:03]} {[%emt 00:03:06]} Rd8 {[%clk 00:07:49]} {[%emt 00:12:52]} 47. Bc6
{[%clk 00:15:01]} {[%emt 00:01:32]} Rd6 {[%clk 00:07:14]} {[%emt 00:01:05]} 48.
Bf3 {[%clk 00:14:52]} {[%emt 00:00:39]} g4 {[%clk 00:04:40]} {[%emt 00:03:04]}
49. Bc6 {[%clk 00:12:57]} {[%emt 00:02:26]} Rd1 {[%clk 00:05:02]} {[%emt
00:00:09]} 50. Kf4 {[%clk 00:07:59]} {[%emt 00:05:27]} Rf1+ {[%clk 00:04:44]}
{[%emt 00:00:48]} 51. Kg5 {[%clk 00:03:58]} {[%emt 00:04:31]} Kd6 {[%clk
00:04:10]} {[%emt 00:01:03]} 52. Nb7+ {[%clk 00:03:23]} {[%emt 00:01:06]} Kc7
{[%clk 00:02:36]} {[%emt 00:02:04]} 53. Nc5 {[%clk 00:03:30]} {[%emt 00:00:23]}
Rf3 {[%clk 00:02:12]} {[%emt 00:00:54]} 54. Nd7 {[%clk 00:02:29]} {[%emt
00:01:30]} Be6 {[%clk 00:01:24]} {[%emt 00:01:19]} 55. Nc5 {[%clk 00:02:14]}
{[%emt 00:00:45]} Bc4 {[%clk 00:01:49]} {[%emt 00:00:05]} 56. Nd7 {[%clk
00:02:37]} {[%emt 00:00:07]} Rxc3 {[%clk 00:02:03]} {[%emt 00:00:16]} 57. Kxf5
{[%clk 00:02:24]} {[%emt 00:00:42]} Rxg3 {[%clk 00:02:01]} {[%emt 00:00:33]} 58.
Ne5 {[%clk 00:01:58]} {[%emt 00:00:56]} Be2 {[%clk 00:02:15]} {[%emt 00:00:15]}
59. Kf4 {[%clk 00:01:08]} {[%emt 00:01:21]} Ra3 {[%clk 00:02:30]} {[%emt
00:00:14]} 60. Bg2 {[%clk 00:00:40]} {[%emt 00:00:59]} Rxa4+ {[%clk 00:02:09]}
{[%emt 00:00:51]} 61. Kg3 {[%clk 00:00:38]} {[%emt 00:00:32]} Kb6 {[%clk
00:01:51]} {[%emt 00:00:47]} 62. Bc6 {[%clk 00:00:45]} {[%emt 00:00:23]} Bxb5
{[%clk 00:01:54]} {[%emt 00:00:27]} 63. Bd5 {[%clk 00:00:46]} {[%emt 00:00:30]}
Be2 {[%clk 00:01:57]} {[%emt 00:00:26]} 64. Be6 {[%clk 00:01:01]} {[%emt
00:00:15]} Re4 {[%clk 00:01:28]} {[%emt 00:00:59]} 65. Nd7+ {[%clk 00:01:29]}
{[%emt 00:00:03]} Kb5 {[%clk 00:01:26]} {[%emt 00:00:32]} 66. Bf5 {[%clk
00:01:55]} {[%emt 00:00:04]} Re7 {[%clk 00:01:27]} {[%emt 00:00:29]} 67. Nf6
{[%clk 00:01:53]} {[%emt 00:00:32]} a5 {[%clk 00:00:51]} {[%emt 00:01:06]} 68.
Nd5 {[%clk 00:02:12]} {[%emt 00:00:10]} Re5 {[%clk 00:01:00]} {[%emt 00:00:21]}
69. Bd7+ {[%clk 00:02:13]} {[%emt 00:00:29]} Kc5 {[%clk 00:01:13]} {[%emt
00:00:17]} 70. Nf6 {[%clk 00:01:40]} {[%emt 00:01:03]} Kd4 {[%clk 00:01:15]}
{[%emt 00:00:28]} 71. Kf4 {[%clk 00:01:18]} {[%emt 00:00:52]} Re7 {[%clk
00:01:31]} {[%emt 00:00:14]} 72. Bf5 {[%clk 00:00:39]} {[%emt 00:01:10]} Rf7
{[%clk 00:01:31]} {[%emt 00:00:29]} 73. Ne4 {[%clk 00:00:45]} {[%emt 00:00:25]}
Rxf5 {[%clk 00:01:45]} {[%emt 00:00:16]} 74. Kxf5 {[%clk 00:01:11]} {[%emt
00:00:03]} Bd3 {[%clk 00:02:09]} {[%emt 00:00:06]} 0-1

[Event "Swedish Chess Championship 2019: Mastarklassen-Elit"]
[Site "Stiga Sports Arena, Arenatorget 1, Eskilstuna, Sweden"]
[Date "2019.07.14"]
[Round "9.1"]
[White "Malmstig, Erik"]
[Black "Cramling, Dan"]
[Result "1-0"]
[TimeControl "90 minutes for 40 moves + 30 minutes for the rest of the game + 30 seconds per move from move one"]
[WhiteTitle "FM"]
[BlackTitle "IM"]
[WhiteFideId "1702866"]
[BlackFideId "1700162"]
[WhiteElo "2357"]
[BlackElo "2321"]

1. d4 {[%emt 00:01:48]} g6 {[%clk 01:26:43]} {[%emt 00:02:31]} 2. c4 {[%clk
01:30:23]} {[%emt 00:01:05]} d6 {[%clk 01:26:55]} {[%emt 00:00:18]} 3. Nc3
{[%clk 01:30:33]} {[%emt 00:00:19]} Bg7 {[%clk 01:27:06]} {[%emt 00:00:21]} 4.
e4 {[%clk 01:30:09]} {[%emt 00:00:53]} e5 {[%clk 01:26:58]} {[%emt 00:00:39]} 5.
d5 {[%clk 01:29:25]} {[%emt 00:01:13]} f5 {[%clk 01:25:25]} {[%emt 00:02:04]} 6.
exf5 {[%clk 01:19:15]} {[%emt 00:10:40]} gxf5 {[%clk 01:25:44]} {[%emt
00:00:10]} 7. Qh5+ {[%clk 01:18:54]} {[%emt 00:00:51]} Kf8 {[%clk 01:25:43]}
{[%emt 00:00:31]} 8. f4 {[%clk 01:18:45]} {[%emt 00:00:39]} Nf6 {[%clk
01:22:32]} {[%emt 00:03:41]} 9. Qh4 {[%clk 01:18:19]} {[%emt 00:00:56]} Na6
{[%clk 01:21:38]} {[%emt 00:01:24]} 10. fxe5 {[%clk 01:12:44]} {[%emt
00:06:05]} dxe5 {[%clk 01:20:23]} {[%emt 00:01:46]} 11. Bh6 {[%clk 01:13:10]}
{[%emt 00:00:04]} Qe7 {[%clk 01:15:27]} {[%emt 00:05:25]} 12. O-O-O {[%clk
01:11:03]} {[%emt 00:02:36]} Bd7 {[%clk 01:04:35]} {[%emt 00:11:23]} 13. h3
{[%clk 00:59:14]} {[%emt 00:12:19]} Re8 {[%clk 00:41:55]} {[%emt 00:23:10]} 14.
Be2 {[%clk 00:50:41]} {[%emt 00:09:03]} Nc5 {[%clk 00:36:43]} {[%emt 00:05:43]}
15. Bxg7+ {[%clk 00:41:34]} {[%emt 00:09:36]} Kxg7 {[%clk 00:31:13]} {[%emt
00:05:59]} 16. Qg5+ {[%clk 00:40:57]} {[%emt 00:01:07]} Kf7 {[%clk 00:30:48]}
{[%emt 00:00:56]} 17. d6 {[%clk 00:36:18]} {[%emt 00:05:08]} cxd6 {[%clk
00:25:57]} {[%emt 00:05:22]} 18. Nd5 {[%clk 00:33:28]} {[%emt 00:03:19]} Nxd5
{[%clk 00:26:03]} {[%emt 00:00:25]} 19. Bh5+ {[%clk 00:33:43]} {[%emt
00:00:14]} Kf8 {[%clk 00:26:24]} {[%emt 00:00:10]} 20. Qh6+ {[%clk 00:33:14]}
{[%emt 00:00:59]} Qg7 {[%clk 00:26:45]} {[%emt 00:00:09]} 21. Qxd6+ {[%clk
00:28:50]} {[%emt 00:04:54]} Re7 {[%clk 00:26:14]} {[%emt 00:01:01]} 22. g4
{[%clk 00:28:05]} {[%emt 00:01:14]} Qg5+ {[%clk 00:10:34]} {[%emt 00:16:10]} 23.
Kb1 {[%clk 00:26:59]} {[%emt 00:01:36]} Ne4 {[%clk 00:09:05]} {[%emt 00:01:59]}
24. Qxd5 {[%clk 00:24:57]} {[%emt 00:02:32]} Bc6 {[%clk 00:06:06]} {[%emt
00:03:30]} 25. Qa5 {[%clk 00:24:11]} {[%emt 00:01:15]} b6 {[%clk 00:02:48]}
{[%emt 00:03:48]} 26. Qe1 {[%clk 00:23:32]} {[%emt 00:01:09]} Nd2+ {[%clk
00:02:29]} {[%emt 00:00:50]} 27. Rxd2 {[%clk 00:23:20]} {[%emt 00:00:42]} Bxh1
{[%clk 00:02:49]} {[%emt 00:00:10]} 28. Ne2 {[%clk 00:22:28]} {[%emt 00:01:20]}
Be4+ {[%clk 00:01:51]} {[%emt 00:01:30]} 29. Ka1 {[%clk 00:22:44]} {[%emt
00:00:14]} Qe3 {[%clk 00:02:05]} {[%emt 00:00:16]} 30. gxf5 {[%clk 00:20:50]}
{[%emt 00:02:24]} Bxf5 {[%clk 00:01:41]} {[%emt 00:00:53]} 31. Rd6 {[%clk
00:19:49]} {[%emt 00:01:30]} Re6 {[%clk 00:01:39]} {[%emt 00:00:34]} 32. Rd7
{[%clk 00:19:08]} {[%emt 00:01:11]} Rg6 {[%clk 00:01:14]} {[%emt 00:00:54]} 33.
Rxa7 {[%clk 00:15:09]} {[%emt 00:04:29]} Rhg8 {[%clk 00:00:32]} {[%emt
00:01:12]} 34. Bxg6 {[%clk 00:13:56]} {[%emt 00:01:43]} Rxg6 {[%clk 00:00:58]}
{[%emt 00:00:04]} 35. a4 {[%clk 00:07:05]} {[%emt 00:07:21]} Rg2 {[%clk
00:00:48]} {[%emt 00:00:39]} 36. Qb4+ {[%clk 00:05:05]} {[%emt 00:02:31]} Qc5
{[%clk 00:01:14]} {[%emt 00:00:04]} 37. Qxc5+ {[%clk 00:04:37]} {[%emt
00:00:58]} bxc5 {[%clk 00:01:43]} 38. Nc3 {[%clk 00:04:57]} {[%emt 00:00:10]}
Bd3 {[%clk 00:02:04]} {[%emt 00:00:09]} 39. b3 {[%clk 00:03:29]} {[%emt
00:01:57]} e4 {[%clk 00:01:00]} {[%emt 00:01:35]} 40. Nd5 {[%clk 00:02:44]}
{[%emt 00:01:14]} Rg1+ {[%clk 00:00:55]} {[%emt 00:00:35]} 41. Kb2 {[%clk
00:03:00]} {[%emt 00:00:15]} Rg2+ {[%clk 00:01:14]} {[%emt 00:00:11]} 42. Kc1
{[%clk 00:24:53]} {[%emt 00:08:36]} Rc2+ {[%clk 00:30:45]} {[%emt 00:00:59]} 43.
Kd1 {[%clk 00:24:54]} {[%emt 00:00:28]} Rb2 {[%clk 00:31:00]} {[%emt 00:00:17]}
44. Rc7 {[%clk 00:22:12]} {[%emt 00:03:13]} Rb1+ {[%clk 00:24:40]} {[%emt
00:06:49]} 45. Kd2 {[%clk 00:22:27]} {[%emt 00:00:14]} Rb2+ {[%clk 00:25:04]}
{[%emt 00:00:07]} 46. Ke1 {[%clk 00:20:46]} {[%emt 00:02:11]} e3 {[%clk
00:25:19]} {[%emt 00:00:15]} 47. Nxe3 {[%clk 00:20:00]} {[%emt 00:01:15]} Re2+
{[%clk 00:25:37]} {[%emt 00:00:12]} 48. Kd1 {[%clk 00:20:24]} {[%emt 00:00:05]}
Rxe3 {[%clk 00:26:02]} {[%emt 00:00:07]} 49. Kd2 {[%clk 00:19:11]} {[%emt
00:01:43]} Rxh3 {[%clk 00:23:41]} {[%emt 00:02:51]} 50. Rxc5 {[%clk 00:19:31]}
{[%emt 00:00:10]} Be4 {[%clk 00:20:15]} {[%emt 00:03:55]} 51. Re5 {[%clk
00:19:51]} {[%emt 00:00:10]} Bg2 {[%clk 00:15:08]} {[%emt 00:05:36]} 52. b4
{[%clk 00:19:49]} {[%emt 00:00:34]} Ra3 {[%clk 00:14:02]} {[%emt 00:01:35]} 53.
a5 {[%clk 00:17:00]} {[%emt 00:03:20]} Kf7 {[%clk 00:12:21]} {[%emt 00:02:10]}
54. Kc2 {[%clk 00:14:19]} {[%emt 00:03:10]} Kf6 {[%clk 00:07:41]} {[%emt
00:05:10]} 55. Re8 {[%clk 00:14:08]} {[%emt 00:00:42]} h5 {[%clk 00:04:01]}
{[%emt 00:04:11]} 56. Kb2 {[%clk 00:14:14]} {[%emt 00:00:23]} Rg3 {[%clk
00:04:10]} {[%emt 00:00:20]} 57. a6 {[%clk 00:10:19]} {[%emt 00:04:27]} Rg7
{[%clk 00:02:11]} {[%emt 00:02:29]} 58. Rh8 {[%clk 00:08:40]} {[%emt 00:02:08]}
Bf3 {[%clk 00:01:37]} {[%emt 00:01:04]} 59. b5 {[%clk 00:07:55]} {[%emt
00:01:15]} Kg5 {[%clk 00:00:49]} {[%emt 00:01:18]} 60. b6 {[%clk 00:07:22]}
{[%emt 00:01:04]} h4 {[%clk 00:00:42]} {[%emt 00:00:37]} 61. Kc3 {[%clk
00:05:12]} {[%emt 00:02:39]} Kg4 {[%clk 00:00:46]} {[%emt 00:00:27]} 62. c5
{[%clk 00:04:34]} {[%emt 00:01:07]} h3 {[%clk 00:00:42]} {[%emt 00:00:34]} 63.
a7 {[%clk 00:03:43]} {[%emt 00:01:22]} Rg6 {[%clk 00:00:37]} {[%emt 00:00:35]}
64. a8=Q {[%clk 00:03:11]} {[%emt 00:01:02]} Bxa8 {[%clk 00:01:04]} {[%emt
00:00:03]} 65. Rxa8 {[%clk 00:03:34]} {[%emt 00:00:07]} Rg5 {[%clk 00:00:57]}
{[%emt 00:00:36]} 66. Kd4 {[%clk 00:02:10]} {[%emt 00:01:54]} h2 {[%clk
00:00:43]} {[%emt 00:00:44]} 67. Ra1 {[%clk 00:02:32]} {[%emt 00:00:09]} Kf3
{[%clk 00:00:41]} {[%emt 00:00:32]} 68. b7 {[%clk 00:02:33]} {[%emt 00:00:28]}
Rg1 {[%clk 00:00:57]} {[%emt 00:00:13]} 69. b8=Q {[%clk 00:02:52]} {[%emt
00:00:12]} Rxa1 {[%clk 00:00:58]} {[%emt 00:00:29]} 70. Qxh2 {[%clk 00:03:16]}
{[%emt 00:00:06]} 1-0